{"text_format":"1","workbook":"xlsx","n_sheets":3,"sheets":["Feuil1","Feuil2","Année en liste"],"not_rendered":{"charts":0,"images":0,"macros":0,"external_links":0,"defined_names":2,"comments":0,"pivot_tables":2},"unopened":[],"bounds":{"document_bytes":16777216,"sheet_cells":100000,"rows_first":2000,"rows_last":500,"rows_between":2000,"halvings":0,"cell_chars":16384,"cell_head_chars":4096},"cells_cut":0,"cells_raw":0,"read":"whole","date_system":"1900"}

{"sheet":"Feuil1","index":0,"n_rows":172,"n_cols":4,"rows_kept":172,"cut":false,"hidden":false,"merged":[]}
[]
[]
["Date","Libellé","Somme de Débit","Somme de Crédit"]
["janv","APICIL",2]
[null,"ARRCO M",null,1]
[null,"ARRCO P",null,2]
[null,"CARSAT M",null,2]
[null,"CARSAT P",null,2]
[null,"Coiffeur",2]
[null,"DONS",2]
[null,"ENGIE",2]
[null,"Frais bancaires",2]
[null,"Frais méd.",1]
[null,"IMPOTS",2]
[null,"maison retraite",2]
[null,"Menage",4]
[null,"Quotidien",11]
[null,"Rbt APICIL",2,2]
[null,"Rbt CPAM",null,2]
[null,"Repas",2]
[null,"SFR",2]
[null,"Soins"]
[null,"TAXES"]
[null,"URSSAF"]
[null,"(vide)"]
["févr","ARRCO M"]
[null,"ARRCO P"]
[null,"CARSAT M"]
[null,"CARSAT P"]
[null,"Distribanque"]
[null,"DONS"]
[null,"ENGIE"]
[null,"IMPOTS"]
[null,"maison retraite"]
[null,"Quotidien"]
[null,"Rbt APICIL"]
[null,"Rbt CPAM"]
[null,"RBT IMPOTS"]
[null,"Repas"]
[null,"SFR"]
[null,"Soins"]
[null,"URSSAF"]
[null,"(vide)"]
["mars","ARRCO M"]
[null,"ARRCO P"]
[null,"CARSAT M"]
[null,"CARSAT P"]
[null,"DONS"]
[null,"ENGIE"]
[null,"EPARGNE"]
[null,"Frais bancaires"]
[null,"IMPOTS"]
[null,"maison retraite"]
[null,"Quotidien"]
[null,"Rbt APICIL"]
[null,"Rbt CPAM"]
[null,"Repas"]
[null,"SFR"]
[null,"URSSAF"]
["avr","APICIL"]
[null,"ARRCO M"]
[null,"ARRCO P"]
[null,"CARSAT P"]
[null,"ENGIE"]
[null,"Frais bancaires"]
[null,"IMPOTS"]
[null,"Le Progrès"]
[null,"maison retraite"]
[null,"Menage"]
[null,"Quotidien"]
[null,"Repas"]
[null,"SFR"]
[null,"URSSAF"]
["mai","ARRCO M"]
[null,"ARRCO P"]
[null,"CARSAT M"]
[null,"CARSAT P"]
[null,"DONS"]
[null,"ENGIE"]
[null,"IMPOTS"]
[null,"maison retraite"]
[null,"Pédicure"]
[null,"Quotidien"]
[null,"SFR"]
[null,"URSSAF"]
["juin","ARRCO P"]
[null,"AXA"]
[null,"CARSAT M"]
[null,"CARSAT P"]
[null,"DONS"]
[null,"ENGIE"]
[null,"EPARGNE"]
[null,"Frais bancaires"]
[null,"Frais méd."]
[null,"IMPOTS"]
[null,"maison retraite"]
[null,"Menage"]
[null,"Quotidien"]
[null,"Rbt APICIL"]
[null,"Rbt CPAM"]
[null,"Repas"]
[null,"SFR"]
[null,"Soins"]
[null,"URSSAF"]
["juil","APICIL"]
[null,"ARRCO P"]
[null,"CARSAT M"]
[null,"CARSAT P"]
[null,"ENGIE"]
[null,"Frais bancaires"]
[null,"IMPOTS"]
[null,"Loisirs"]
[null,"maison retraite"]
[null,"Quotidien"]
[null,"Rbt APICIL"]
[null,"Repas"]
[null,"SFR"]
[null,"Soins"]
["août","ARRCO M"]
[null,"ARRCO P"]
[null,"AXA"]
[null,"CARSAT M"]
[null,"CARSAT P"]
[null,"DONS"]
[null,"ENGIE"]
[null,"IMPOTS"]
[null,"maison retraite"]
[null,"Menage"]
[null,"Quotidien"]
[null,"Rbt APICIL"]
[null,"Rbt CPAM"]
[null,"RBT IMPOTS"]
[null,"Repas"]
[null,"SFR"]
[null,"Soins"]
["sept","ARRCO P"]
[null,"CARSAT M"]
[null,"CARSAT P"]
[null,"ENGIE"]
[null,"EPARGNE"]
[null,"IMPOTS"]
[null,"INTERETS"]
[null,"Le Progrès"]
[null,"maison retraite"]
[null,"Menage"]
[null,"Quotidien"]
[null,"SFR"]
[null,"URSSAF"]
["oct","APICIL"]
[null,"ARRCO M"]
[null,"ARRCO P"]
[null,"CARSAT M"]
[null,"CARSAT P"]
[null,"ENGIE"]
[null,"Frais bancaires"]
[null,"IMPOTS"]
[null,"maison retraite"]
[null,"Quotidien"]
[null,"Rbt CPAM"]
[null,"Repas"]
[null,"SFR"]
["nov","ARRCO P"]
[null,"CARSAT M"]
[null,"CARSAT P"]
[null,"ENGIE"]
[null,"Frais méd."]
[null,"Quotidien"]
[null,"Rbt APICIL"]
[null,"RBT IMPOTS"]
[null,"Repas"]
[null,"(vide)"]
["Total général",null,36,11]

{"sheet":"Feuil2","index":1,"n_rows":36,"n_cols":21,"rows_kept":36,"cut":false,"hidden":false,"merged":[]}
[]
[]
[null,null,"Valeurs","Date (mois)"]
[null,null,"Somme de Débit",null,"Somme de Crédit",null,"Somme de Solde",null,null,null,null,null,null,null,null,null,null,null,"Total Somme de Débit","Total Somme de Crédit","Total Somme de Solde"]
["Date (année)","Libellé","janv","déc","janv","déc","janv","févr","mars","avr","mai","juin","juil","août","sept","oct","nov","déc"]
["1899",null,null,12,null,1,null,null,null,null,null,null,null,null,null,null,null,-1474,12,1,-1474]
["2020","(vide)",null,null,null,null,null,-25,null,null,null,null,null,null,null,null,null,null,null,null,-25]
[null,"APICIL",2,null,null,null,-11,null,null,-25,null,null,-25,null,null,-25,null,null,2,null,-86]
[null,"ARRCO M",null,null,null,null,null,-25,-25,-25,-25,null,null,-25,null,-25,null,null,null,null,-150]
[null,"ARRCO P",null,null,2,null,3,-25,-25,-25,-25,-50,-50,-25,-50,-25,-50,null,null,2,-347]
[null,"AXA",null,null,null,null,null,null,null,null,null,-25,null,-25,null,null,null,null,null,null,-50]
[null,"CARSAT M",null,null,2,null,-5,-25,-25,null,-25,-25,-25,-25,-25,-25,-25,null,null,2,-230]
[null,"CARSAT P",null,null,2,null,-3,-25,-25,-25,-25,-25,-25,-25,-25,-25,-25,null,null,2,-253]
[null,"Coiffeur",2,null,null,null,3,null,null,null,null,null,null,null,null,null,null,null,2,null,3]
[null,"Distribanque",null,null,null,null,null,-25,null,null,null,null,null,null,null,null,null,null,null,null,-25]
[null,"DONS",2,null,null,null,-21,-50,-25,null,-25,-25,null,-50,null,null,null,null,2,null,-196]
[null,"ENGIE",2,null,null,null,-5,-25,-25,-25,-25,-25,-25,-25,-25,-25,-25,null,2,null,-255]
[null,"EPARGNE",null,null,null,null,null,null,-25,null,null,-25,null,null,-25,null,null,null,null,null,-75]
[null,"Frais bancaires",2,null,null,null,-17,null,-50,-25,null,-75,-25,null,null,-25,null,null,2,null,-217]
[null,"Frais méd.",null,null,null,null,null,null,null,null,null,-50,null,null,null,null,-50,null,null,null,-100]
[null,"IMPOTS",null,null,null,null,null,-25,-25,-25,-25,-25,-25,-25,-25,-25,null,null,null,null,-225]
[null,"INTERETS",null,null,null,null,null,null,null,null,null,null,null,null,-50,null,null,null,null,null,-50]
[null,"Le Progrès",null,null,null,null,null,null,null,-25,null,null,null,null,-25,null,null,null,null,null,-50]
[null,"Loisirs",null,null,null,null,null,null,null,null,null,null,-25,null,null,null,null,null,null,null,-25]
[null,"maison retraite",2,null,null,null,-7,-25,-25,-25,-25,-25,-25,-25,-25,-25,null,null,2,null,-232]
[null,"Menage",2,null,null,null,-13,null,null,-25,null,-50,null,-25,-25,null,null,null,2,null,-138]
[null,"Pédicure",null,null,null,null,null,null,null,null,-25,null,null,null,null,null,null,null,null,null,-25]
[null,"Quotidien",4,null,null,null,-28,-25,-50,-125,-100,-100,-50,-50,-25,-100,-25,null,4,null,-678]
[null,"Rbt APICIL",2,null,2,null,-20,-25,-25,null,null,-50,-25,-25,null,null,-25,null,2,2,-195]
[null,"Rbt CPAM",null,null,2,null,-3,-25,-25,null,null,-25,null,-25,null,-25,null,null,null,2,-128]
[null,"RBT IMPOTS",null,null,null,null,null,-25,null,null,null,null,null,-25,null,null,-25,null,null,null,-75]
[null,"Repas",2,null,null,null,-5,-25,-25,-50,null,-25,-25,-25,null,-50,-25,null,2,null,-255]
[null,"SFR",2,null,null,null,-23,-25,-25,-25,-25,-25,-25,-25,-25,-25,null,null,2,null,-248]
[null,"Soins",null,null,null,null,null,-25,null,null,null,-25,-25,-25,null,null,null,null,null,null,-100]
[null,"URSSAF",null,null,null,null,-25,-25,-25,-25,-25,-50,null,null,-25,null,null,null,null,null,-200]
["Total général",null,24,12,10,1,-180,-475,-450,-475,-375,-725,-400,-475,-375,-425,-275,-1474,36,11,-6104]

{"sheet":"Année en liste","index":2,"n_rows":272,"n_cols":6,"rows_kept":272,"cut":false,"hidden":false,"merged":[[0,3,0,5]]}
["Journal de Banque",null,null,"ANNEE"]
[]
[null,"solde au 01/01/2020",null,null,null,0]
["Date","Libellé","Libelle","Débit","Crédit","Solde"]
["2020-01-02","ARRCO P","libelle",null,1,{"$f":"F3-D5+E5","v":1}]
["2020-01-02","ARRCO P","libelle",null,1,{"$f":"F5-D6+E6","v":2}]
["00:00:00","ARRCO M","libelle",null,1,3]
["2020-01-05","Coiffeur","libelle",1,null,2]
["2020-01-05","Coiffeur","libelle",1,null,1]
["00:00:00","Frais méd.","libelle",1,null,0]
["00:00:00","Quotidien","libelle",1,null,-1]
["00:00:00","Quotidien","libelle",1,null,-2]
["00:00:00","Quotidien","libelle",1,null,-3]
["00:00:00","Quotidien","libelle",1,null,-4]
["00:00:00","Quotidien","libelle",1,null,-5]
["00:00:00","Quotidien","libelle",1,null,-6]
["00:00:00","Quotidien","libelle",1,null,-7]
["2020-01-09","CARSAT M","libelle",null,2,-5]
["2020-01-09","CARSAT P","libelle",null,2,-3]
["2020-01-10","ENGIE","libelle",2,null,-5]
["2020-01-10","Rbt CPAM","libelle",null,2,-3]
["2020-01-14","Rbt APICIL","libelle",null,2,-1]
["2020-01-15","Quotidien","libelle",2,null,-3]
["2020-01-16","Repas","libelle",2,null,-5]
["2020-01-16","maison retraite","libelle",2,null,-7]
["00:00:00","IMPOTS","libelle",2,null,-9]
["2020-01-17","APICIL","libelle",2,null,-11]
["2020-01-17","Menage","libelle",2,null,-13]
["00:00:00","Menage","libelle",2,null,-15]
["2020-01-18","Frais bancaires","libelle",2,null,-17]
["2020-01-20","Rbt APICIL","libelle",2,null,-19]
["2020-01-24","DONS","libelle",2,null,-21]
["2020-01-27","SFR","libelle",2,null,-23]
["2020-01-28","Quotidien","libelle",2,null,-25]
["2020-01-31","URSSAF","libelle",null,null,-25]
["2020-02-03","ARRCO M","libelle",null,null,{"$f":"SUM(F35-D36+E36)","v":-25}]
["2020-02-03","ARRCO P","libelle",null,null,{"$f":"SUM(F36-D37+E37)","v":-25}]
["00:00:00","ARRCO P","libelle",null,null,{"$f":"SUM(F37-D38+E38)","v":-25}]
["2020-02-05","Soins","libelle",null,null,-25]
["2020-02-05","QUOTIDIEN","libelle",null,null,{"$f":"SUM(F39-D40+E40)","v":-25}]
["00:00:00","Frais méd.","libelle",null,null,-25]
["00:00:00","QUOTIDIEN","libelle",null,null,-25]
["00:00:00","Soins","libelle",null,null,-25]
["00:00:00","QUOTIDIEN","libelle",null,null,-25]
["00:00:00","QUOTIDIEN","libelle",null,null,-25]
["00:00:00","QUOTIDIEN","libelle",null,null,-25]
["2020-02-06",null,"libelle",null,null,-25]
["2020-02-06","RBT IMPOTS","libelle",null,null,-25]
["2020-02-07","CARSAT M","libelle",null,null,-25]
["2020-02-07","CARSAT P","libelle",null,null,-25]
["00:00:00","Coiffeur","libelle",null,null,-25]
["00:00:00","Coiffeur","libelle",null,null,-25]
["2020-02-10","ENGIE","libelle",null,null,-25]
["2020-02-10","DONS","libelle",null,null,-25]
["00:00:00","QUOTIDIEN","libelle",null,null,-25]
["2020-02-11","DONS","libelle",null,null,-25]
["2020-02-12","Repas","libelle",null,null,-25]
["2020-02-18","maison retraite","libelle",null,null,-25]
["2020-02-18","IMPOTS","libelle",null,null,-25]
["2020-02-21","Rbt CPAM","libelle",null,null,-25]
["2020-02-24","Rbt APICIL","libelle",null,null,-25]
["2020-02-25","SFR","libelle",null,null,-25]
["2020-02-25","Distribanque","libelle",null,null,-25]
["2020-02-28","URSSAF","libelle",null,null,-25]
["2020-03-02","ARRCO P","libelle",null,null,{"$f":"F64-D65+E65","v":-25}]
["2020-03-02","ARRCO M","libelle",null,null,{"$f":"F65-D66+E66","v":-25}]
["00:00:00","ARRCO P","libelle",null,null,-25]
["00:00:00","Menage","libelle",null,null,-25]
["00:00:00","Menage","libelle",null,null,-25]
["00:00:00","Menage","libelle",null,null,-25]
["2020-03-05","EPARGNE","libelle",null,null,-25]
["2020-03-05","Quotidien","libelle",null,null,-25]
["00:00:00","Quotidien","libelle",null,null,-25]
["00:00:00","Quotidien","libelle",null,null,-25]
["00:00:00","Frais méd.","libelle",null,null,-25]
["00:00:00","Quotidien","libelle",null,null,-25]
["00:00:00","Soins","libelle",null,null,-25]
["00:00:00","Quotidien","libelle",null,null,-25]
["2020-03-09","CARSAT M","libelle",null,null,-25]
["2020-03-09","CARSAT P","libelle",null,null,-25]
["2020-03-11","Repas","libelle",null,null,-25]
["2020-03-12","ENGIE","libelle",null,null,-25]
["2020-03-13","Quotidien","libelle",null,null,-25]
["2020-03-17","Frais bancaires","libelle",null,null,-25]
["2020-03-17","IMPOTS","libelle",null,null,-25]
["2020-03-18","maison retraite","libelle",null,null,-25]
["2020-03-20","DONS","libelle",null,null,-25]
["2020-03-23","Rbt CPAM","libelle",null,null,-25]
["2020-03-24","Frais bancaires","libelle",null,null,-25]
["2020-03-24","Rbt APICIL","libelle",null,null,-25]
["2020-03-25","SFR","libelle",null,null,-25]
["2020-03-31","URSSAF","libelle",null,null,-25]
["2020-04-01","ARRCO P","libelle",null,null,{"$f":"F92-D93+E93","v":-25}]
["2020-04-01","ARRCO M","libelle",null,null,{"$f":"F93-D94+E94","v":-25}]
["00:00:00","ARRCO P","libelle",null,null,-25]
["2020-04-06","Quotidien","libelle",null,null,-25]
["2020-04-06","Quotidien","libelle",null,null,-25]
["00:00:00","Quotidien","libelle",null,null,-25]
["00:00:00","Soins","libelle",null,null,-25]
["2020-04-09","Repas","libelle",null,null,-25]
["2020-04-09","CARSAT P","libelle",null,null,-25]
["00:00:00","CARSAT M","libelle",null,null,-25]
["2020-04-14","ENGIE","libelle",null,null,-25]
["2020-04-15","Le Progrès","libelle",null,null,-25]
["2020-04-15","APICIL","libelle",null,null,-25]
["2020-04-16","IMPOTS","libelle",null,null,-25]
["2020-04-16","Quotidien","libelle",null,null,-25]
["00:00:00","Quotidien","libelle",null,null,-25]
["2020-04-17","maison retraite","libelle",null,null,-25]
["2020-04-17","Quotidien","libelle",null,null,-25]
["2020-04-18","Frais bancaires","libelle",null,null,-25]
["2020-04-24","Quotidien","libelle",null,null,-25]
["2020-04-24","Menage","libelle",null,null,-25]
["00:00:00","Menage","libelle",null,null,-25]
["2020-04-27","SFR","libelle",null,null,-25]
["2020-04-29","Repas","libelle",null,null,-25]
["2020-04-30","URSSAF","libelle",null,null,-25]
["2020-05-04","ARRCO P","libelle",null,null,{"$f":"F117-D118+E118","v":-25}]
["2020-05-04","ARRCO M","libelle",null,null,{"$f":"F118-D119+E119","v":-25}]
["00:00:00","ARRCO P","libelle",null,null,-25]
["2020-05-07","CARSAT P","libelle",null,null,-25]
["2020-05-07","CARSAT M","libelle",null,null,-25]
["2020-05-11","DONS","libelle",null,null,-25]
["2020-05-11","ENGIE","libelle",null,null,-25]
["2020-05-13","Quotidien","libelle",null,null,-25]
["2020-05-13","Quotidien","libelle",null,null,-25]
["00:00:00","Quotidien","libelle",null,null,-25]
["2020-05-18","IMPOTS","libelle",null,null,-25]
["2020-05-18","maison retraite","libelle",null,null,-25]
["00:00:00","Soins","libelle",null,null,-25]
["00:00:00","Quotidien","libelle",null,null,-25]
["2020-05-22","Pédicure","libelle",null,null,-25]
["2020-05-25","SFR","libelle",null,null,-25]
["2020-05-27","Quotidien","libelle",null,null,-25]
["2020-05-29","URSSAF","libelle",null,null,-25]
["2020-05-29","Quotidien","libelle",null,null,-25]
["00:00:00","Repas","libelle",null,null,-25]
["2020-06-02","ARRCO P","libelle",null,null,{"$f":"F137-D138+E138","v":-25}]
["2020-06-02","ARRCO P","libelle",null,null,{"$f":"F138-D139+E139","v":-25}]
["00:00:00","ARRCO M","libelle",null,null,-25]
["00:00:00","Coiffeur","libelle",null,null,-25]
["2020-06-04","Quotidien","libelle",null,null,-25]
["2020-06-04","Rbt APICIL","libelle",null,null,-25]
["2020-06-05","EPARGNE","libelle",null,null,-25]
["2020-06-05","AXA","libelle",null,null,-25]
["2020-06-08","Frais méd.","libelle",null,null,-25]
["2020-06-09","CARSAT M","libelle",null,null,-25]
["2020-06-09","CARSAT P","libelle",null,null,-25]
["2020-06-10","ENGIE","libelle",null,null,-25]
["2020-06-12","Menage","libelle",null,null,-25]
["2020-06-12","Menage","libelle",null,null,-25]
["2020-06-16","IMPOTS","libelle",null,null,-25]
["2020-06-17","Quotidien","libelle",null,null,-25]
["2020-06-17","Quotidien","libelle",null,null,-25]
["2020-06-18","maison retraite","libelle",null,null,-25]
["2020-06-19","URSSAF","libelle",null,null,-25]
["2020-06-19","Repas","libelle",null,null,-25]
["2020-06-22","Soins","libelle",null,null,-25]
["2020-06-23","Frais bancaires","libelle",null,null,-25]
["2020-06-24","DONS","libelle",null,null,-25]
["2020-06-25","Frais bancaires","libelle",null,null,-25]
["2020-06-25","Frais bancaires","libelle",null,null,-25]
["2020-06-26","SFR","libelle",null,null,-25]
["2020-06-26","Rbt CPAM","libelle",null,null,-25]
["2020-06-29","Rbt APICIL","libelle",null,null,-25]
["2020-06-29","Quotidien","libelle",null,null,-25]
["2020-06-30","URSSAF","libelle",null,null,-25]
["2020-06-30","Frais méd.","libelle",null,null,-25]
["2020-07-01","ARRCO P","libelle",null,null,{"$f":"F168-D169+E169","v":-25}]
["2020-07-01","ARRCO P","libelle",null,null,{"$f":"F169-D170+E170","v":-25}]
["00:00:00","ARRCO M","libelle",null,null,-25]
["00:00:00","Quotidien","libelle",null,null,-25]
["00:00:00","Menage","libelle",null,null,-25]
["00:00:00","Menage","libelle",null,null,-25]
["2020-07-06","Loisirs","libelle",null,null,-25]
["2020-07-09","CARSAT M","libelle",null,null,-25]
["2020-07-09","CARSAT P","libelle",null,null,-25]
["00:00:00","Repas","libelle",null,null,-25]
["00:00:00","Quotidien","libelle",null,null,-25]
["2020-07-10","Rbt APICIL","libelle",null,null,-25]
["2020-07-13","ENGIE","libelle",null,null,-25]
["2020-07-15","APICIL","libelle",null,null,-25]
["2020-07-16","maison retraite","libelle",null,null,-25]
["2020-07-16","IMPOTS","libelle",null,null,-25]
["2020-07-18","Frais bancaires","libelle",null,null,-25]
["2020-07-21","Quotidien","libelle",null,null,-25]
["2020-07-22","Soins","libelle",null,null,-25]
["2020-07-23","Quotidien","libelle",null,null,-25]
["2020-07-27","SFR","libelle",null,null,-25]
["2020-07-27","Repas","libelle",null,null,-25]
["00:00:00","URSSAF","libelle",null,null,-25]
["2020-08-03","ARRCO M","libelle",null,null,{"$f":"F191-D192+E192","v":-25}]
["2020-08-03","ARRCO P","libelle",null,null,{"$f":"F192-D193+E193","v":-25}]
["00:00:00","ARRCO P","libelle",null,null,-25]
["2020-08-05","Quotidien","libelle",null,null,-25]
["2020-08-07","CARSAT M","libelle",null,null,-25]
["2020-08-07","CARSAT P","libelle",null,null,-25]
["00:00:00","Coiffeur","libelle",null,null,-25]
["2020-08-10","ENGIE","libelle",null,null,-25]
["2020-08-10","Menage","libelle",null,null,-25]
["00:00:00","Menage","libelle",null,null,-25]
["2020-08-17","Soins","libelle",null,null,-25]
["2020-08-17","maison retraite","libelle",null,null,-25]
["2020-08-18","IMPOTS","libelle",null,null,-25]
["2020-08-19","RBT IMPOTS","libelle",null,null,-25]
["2020-08-19","Quotidien","libelle",null,null,-25]
["2020-08-20","AXA","libelle",null,null,-25]
["2020-08-25","SFR","libelle",null,null,-25]
["2020-08-25","Rbt CPAM","libelle",null,null,-25]
["2020-08-26","Rbt APICIL","libelle",null,null,-25]
["2020-08-28","DONS","libelle",null,null,-25]
["2020-08-31","DONS","libelle",null,null,-25]
["2020-08-31","Repas","libelle",null,null,-25]
["2020-09-01","ARRCO P","libelle",null,null,{"$f":"F213-D214+E214","v":-25}]
["2020-09-01","ARRCO P","libelle",null,null,{"$f":"F214-D215+E215","v":-25}]
["00:00:00","ARRCO M","libelle",null,null,-25]
["2020-09-07","EPARGNE","libelle",null,null,-25]
["2020-09-07","Quotidien","libelle",null,null,-25]
["00:00:00","Frais méd.","libelle",null,null,-25]
["2020-09-09","CARSAT M","libelle",null,null,{"$f":"F218-D220+E220","v":-25}]
["2020-09-09","CARSAT P","libelle",null,null,-25]
["2020-09-14","ENGIE","libelle",null,null,-25]
["2020-09-16","IMPOTS","libelle",null,null,-25]
["2020-09-17","maison retraite","libelle",null,null,-25]
["2020-09-21","Le Progrès","libelle",null,null,-25]
["2020-09-25","SFR","libelle",null,null,-25]
["2020-09-29","INTERETS","libelle",null,null,-25]
["2020-09-29","INTERETS","libelle",null,null,-25]
["00:00:00","TAXES","libelle",null,null,-25]
["00:00:00","TAXES","libelle",null,null,-25]
["00:00:00","TAXES","libelle",null,null,-25]
["00:00:00","TAXES","libelle",null,null,-25]
["2020-09-30","URSSAF","libelle",null,null,-25]
["2020-09-30","Menage","libelle",null,null,-25]
["00:00:00","Menage","libelle",null,null,-25]
["2020-10-01","ARRCO P","libelle",null,null,{"$f":"F235-D236+E236","v":-25}]
["2020-10-01","ARRCO M","libelle",null,null,{"$f":"F236-D237+E237","v":-25}]
["00:00:00","ARRCO P","libelle",null,null,-25]
["00:00:00","Quotidien","libelle",null,null,-25]
["2020-10-05","Quotidien","libelle",null,null,-25]
["2020-10-05","Quotidien","libelle",null,null,-25]
["2020-10-07","Repas","libelle",null,null,-25]
["2020-10-07","Quotidien","libelle",null,null,-25]
["2020-10-09","CARSAT P","libelle",null,null,-25]
["2020-10-09","CARSAT M","libelle",null,null,-25]
["2020-10-12","ENGIE","libelle",null,null,-25]
["2020-10-12","Quotidien","libelle",null,null,-25]
["00:00:00","Quotidien","libelle",null,null,-25]
["00:00:00","Quotidien","libelle",null,null,-25]
["2020-10-14","Rbt CPAM","libelle",null,null,-25]
["2020-10-14","Repas","libelle",null,null,-25]
["2020-10-15","APICIL","libelle",null,null,-25]
["2020-10-16","maison retraite","libelle",null,null,-25]
["2020-10-16","IMPOTS","libelle",null,null,-25]
["00:00:00","Rbt APICIL","libelle",null,null,-25]
["00:00:00","Coiffeur","libelle",null,null,-25]
["2020-10-20","Frais bancaires","libelle",null,null,-25]
["2020-10-26","SFR","libelle",null,null,-25]
["2020-11-02","ARRCO P","libelle",null,null,{"$f":"F258-D259+E259","v":-25}]
["2020-11-02","ARRCO P","libelle",null,null,{"$f":"F259-D260+E260","v":-25}]
["00:00:00","ARRCO M","libelle",null,null,-25]
["2020-11-03","Rbt APICIL","libelle",null,null,-25]
["2020-11-04","Repas","libelle",null,null,-25]
["2020-11-05","Frais méd.","libelle",null,null,-25]
["2020-11-05","Frais méd.","libelle",null,null,-25]
["2020-11-06","Rbt IMPOTS","libelle",null,null,-25]
["2020-11-09","CARSAT M","libelle",null,null,-25]
["2020-11-09","CARSAT P","libelle",null,null,-25]
["2020-11-10","ENGIE","libelle",null,null,-25]
["2020-11-13","Quotidien","libelle",null,null,-25]
["2020-11-13"]
["00:00:00"]